bitfinex/quotes_BTCUSD_20230120
["timestamp","ask_amount","ask_price","bid_price","bid_amount"]
[1674239453963,0.00798527,21334.0,21333.0,0.82732482]
[1674239454494,0.00798527,21334.0,21333.0,0.1168]
[1674239454743,0.00798527,21334.0,21333.0,0.042]
[1674239454744,0.72504745,21334.0,21333.0,0.042]
[1674239455012,0.85577548,21334.0,21333.0,0.042]
[1674239457092,0.50080427,21334.0,21333.0,0.042]
[1674239457348,1.43198642,21334.0,21333.0,0.042]
[1674239457596,1.26953927,21334.0,21333.0,0.042]
[1674239458378,1.34403927,21334.0,21333.0,0.042]
[1674239458624,1.49403927,21334.0,21333.0,0.042]
[1674239459877,1.49403927,21334.0,21327.0,0.4337449]
[1674239460128,0.15,21332.0,21327.0,0.4337449]
[1674239460385,0.52277397,21331.0,21327.0,0.4337449]
[1674239460659,0.0085,21331.0,21330.0,0.0744]
[1674239460918,0.38619908,21331.0,21330.0,0.0744]
[1674239461150,0.37769908,21331.0,21330.0,0.0744]
[1674239461664,0.618782,21332.0,21327.0,0.1668]
[1674239461935,0.4046348,21330.0,21327.0,0.1668]
[1674239462226,0.59895577,21330.0,21327.0,0.1668]
[1674239462417,0.59895577,21330.0,21327.0,0.0748]
[1674239462679,0.4046348,21330.0,21327.0,0.0748]
[1674239462935,1.026339,21333.0,21328.0,0.33029213]
[1674239462936,0.839059,21333.0,21328.0,0.33029213]
[1674239463206,0.46052357,21332.0,21328.0,0.33029213]
[1674239463520,0.39492343,21332.0,21330.0,0.0747]
[1674239463746,0.39492343,21332.0,21331.0,0.013357]
[1674239464001,0.39492343,21332.0,21330.0,0.0747]
[1674239466428,0.38642343,21332.0,21330.0,0.1667]
[1674239466687,0.38642343,21332.0,21330.0,0.48589002]
[1674239467203,0.00798527,21334.0,21330.0,0.95470702]
[1674239467471,0.42811948,21333.0,21330.0,0.95471302]
[1674239468284,0.42811948,21333.0,21330.0,1.42353602]
[1674239468576,0.42811948,21333.0,21331.0,0.39940462]
[1674239469419,0.42811948,21333.0,21329.0,0.468824]
[1674239469681,0.42811948,21333.0,21329.0,1.38304591]
[1674239469682,0.62244045,21333.0,21329.0,1.38304591]
[1674239469959,0.42811948,21333.0,21331.0,0.17701363]
[1674239470269,0.43011948,21333.0,21331.0,0.17701363]
[1674239470529,0.42811948,21333.0,21331.0,0.17701363]
[1674239471377,0.43011948,21333.0,21331.0,0.17701363]
[1674239471933,0.002,21333.0,21331.0,0.32701363]
[1674239472194,0.002,21333.0,21332.0,0.339519]
[1674239473023,0.3917994,21334.0,21332.0,0.468779]
[1674239473317,0.002,21333.0,21332.0,0.468779]
[1674239473592,0.002,21333.0,21332.0,0.781811]
[1674239473861,0.002,21333.0,21332.0,1.21951721]
[1674239474107,0.00798527,21334.0,21333.0,7.248e-05]
[1674239474323,0.4498512,21334.0,21333.0,7.248e-05]
[1674239475452,0.4488512,21334.0,21333.0,7.248e-05]
[1674239476193,0.4498512,21334.0,21333.0,0.00607248]
[1674239476600,0.00898527,21334.0,21333.0,1.42396513]
[1674239476603,0.00898527,21334.0,21333.0,1.57306513]
[1674239476828,0.00898527,21334.0,21333.0,1.90726713]
[1674239477091,0.00898527,21334.0,21333.0,1.50618848]
[1674239477295,0.00898527,21334.0,21333.0,1.88940188]
[1674239477994,0.00898527,21334.0,21333.0,2.03940188]
[1674239478187,0.00898527,21334.0,21333.0,2.03340188]
[1674239478408,0.00798527,21334.0,21333.0,2.12440188]
[1674239478847,0.00791454,21334.0,21333.0,2.12440188]
[1674239479069,0.00278437,21334.0,21333.0,2.83621323]
[1674239479306,0.00278437,21334.0,21333.0,3.46580438]
[1674239479307,4.37e-06,21334.0,21333.0,3.46580438]
[1674239479522,0.00765366,21340.0,21335.0,0.0018413]
[1674239479756,0.00765366,21340.0,21339.0,0.1496]
[1674239479987,0.00765366,21340.0,21339.0,1.407161]
[1674239480207,0.00765366,21340.0,21339.0,1.557161]
[1674239480496,0.00765366,21340.0,21339.0,1.89008406]
[1674239480937,0.00765366,21340.0,21339.0,1.557161]
[1674239481629,0.00765366,21340.0,21339.0,1.89008406]
[1674239481992,0.00765366,21340.0,21339.0,2.36728575]
[1674239482275,0.00765366,21340.0,21339.0,2.95048575]
[1674239482538,0.00765366,21340.0,21339.0,3.04248575]
[1674239482811,0.00765366,21340.0,21339.0,3.18425335]
[1674239483089,0.00765366,21340.0,21339.0,2.85133029]
[1674239483625,0.00765366,21340.0,21339.0,2.85139029]
[1674239483881,0.00765366,21340.0,21339.0,2.40962269]
[1674239484436,0.00765366,21340.0,21339.0,2.74640133]
[1674239485472,0.00765366,21340.0,21339.0,1.21777464]
[1674239486311,0.00765366,21340.0,21339.0,0.880996]
[1674239486576,0.00765366,21340.0,21339.0,1.46633786]
[1674239487400,0.00765366,21340.0,21339.0,2.21592075]
[1674239488191,0.00765366,21340.0,21339.0,1.9744792]
[1674239488674,0.00765366,21340.0,21339.0,1.88299769]
[1674239488933,0.00765366,21340.0,21339.0,2.21592075]
[1674239489706,0.00765366,21340.0,21339.0,2.29066075]
[1674239490984,0.00765366,21340.0,21339.0,2.68912056]
[1674239491226,0.00765366,21340.0,21339.0,2.29066075]
[1674239491762,0.00765366,21340.0,21339.0,2.71767245]
[1674239492019,0.00765366,21340.0,21339.0,2.29066075]
[1674239492502,0.00765366,21340.0,21339.0,1.95773769]
[1674239492767,0.00765366,21340.0,21339.0,2.3788275]
[1674239493020,0.00765366,21340.0,21339.0,2.0788275]
[1674239494293,0.00765366,21340.0,21339.0,2.29066075]
[1674239496841,0.00765366,21340.0,21339.0,1.95773769]
[1674239497094,0.00765366,21340.0,21339.0,2.29066075]
[1674239497308,0.00765366,21340.0,21339.0,2.73534933]
[1674239497605,0.00765366,21340.0,21339.0,2.40242627]
[1674239498371,0.00765366,21340.0,21339.0,2.31042627]
[1674239498630,0.00765366,21340.0,21339.0,2.10142627]
[1674239498895,0.00765366,21340.0,21339.0,1.47462458]
[1674239499407,0.00765366,21340.0,21339.0,1.94324958]
[1674239499666,0.00765366,21340.0,21339.0,0.879936]
[1674239499667,0.08815366,21340.0,21339.0,0.879936]
[1674239499966,0.43657375,21340.0,21339.0,0.10294]
[1674239500447,0.35607375,21340.0,21339.0,0.571565]
[1674239500980,0.35607375,21340.0,21339.0,0.10294]
[1674239501323,0.36457375,21340.0,21339.0,0.01194]
[1674239501495,0.68821275,21340.0,21339.0,0.09594]
[1674239502311,0.33979266,21340.0,21339.0,0.09594]
[1674239502620,0.41459266,21340.0,21339.0,0.09594]
[1674239502788,1.18219566,21340.0,21339.0,0.09694]
[1674239503084,1.18319566,21340.0,21339.0,0.09694]
[1674239503342,1.33319566,21340.0,21339.0,0.09694]
[1674239503592,1.33319566,21340.0,21339.0,0.09687432]
[1674239503593,1.71898554,21340.0,21339.0,0.09687432]
[1674239503892,1.40799566,21340.0,21339.0,0.09687432]
[1674239504128,1.42099566,21340.0,21339.0,0.01887432]
[1674239504373,1.40699566,21340.0,21339.0,0.01187432]
[1674239504629,1.42099566,21340.0,21339.0,0.01887432]
[1674239504876,1.40699566,21340.0,21339.0,0.01187432]
[1674239505387,1.320381,21340.0,21339.0,0.01887432]
[1674239505643,1.19619566,21340.0,21339.0,0.01887432]
[1674239505898,1.04619566,21340.0,21339.0,0.01887432]
[1674239506155,1.34619566,21340.0,21339.0,0.01912432]
[1674239506422,0.89619566,21340.0,21339.0,0.01912432]
[1674239507443,1.04619566,21340.0,21339.0,0.01912432]
[1674239508007,1.34619566,21340.0,21339.0,0.01912432]
[1674239508811,1.04619566,21340.0,21339.0,0.01912432]
[1674239509299,1.04594566,21340.0,21339.0,0.01887432]
[1674239509551,1.78786714,21340.0,21339.0,0.01887432]
[1674239509808,1.33786714,21340.0,21339.0,0.01887432]
[1674239510380,0.86926414,21340.0,21339.0,0.01887432]
[1674239510877,0.54662514,21340.0,21339.0,0.01887432]
[1674239511134,0.42899266,21340.0,21339.0,0.01887432]
[1674239511698,1.34759566,21340.0,21339.0,0.01887432]
[1674239512687,0.87899266,21340.0,21339.0,0.01887432]
[1674239513197,1.29669388,21340.0,21339.0,0.01887432]
[1674239513453,0.99669388,21340.0,21339.0,0.01887432]
[1674239513710,0.84669388,21340.0,21339.0,0.01887432]
[1674239515562,0.99669388,21340.0,21339.0,0.01887432]
[1674239515784,0.84669388,21340.0,21339.0,0.01887432]
[1674239518307,0.42899266,21340.0,21339.0,0.01887432]
[1674239518605,0.02990366,21340.0,21339.0,0.42293028]
[1674239518871,0.02990366,21340.0,21339.0,0.75712528]
[1674239519397,0.02140366,21340.0,21339.0,0.75712528]
[1674239519672,0.02140366,21340.0,21339.0,1.22575028]
[1674239519927,0.00740366,21340.0,21339.0,1.68737528]
[1674239520183,0.00840366,21340.0,21339.0,1.76637528]
[1674239520714,0.00840366,21340.0,21339.0,1.36231932]
[1674239520969,0.00840366,21340.0,21339.0,1.8770588]
[1674239522018,0.00840366,21340.0,21339.0,1.7270588]
[1674239523049,0.00840366,21340.0,21339.0,0.89369432]
[1674239523388,0.47032143,21340.0,21339.0,0.09087432]
[1674239523576,0.00840366,21340.0,21339.0,0.55949932]
[1674239523835,0.00840366,21340.0,21339.0,1.35508868]
[1674239524347,0.00840366,21340.0,21339.0,1.50508868]
[1674239524634,0.00840366,21340.0,21339.0,1.50535332]
[1674239524872,0.00840366,21340.0,21339.0,1.84927082]
[1674239525355,0.00840366,21340.0,21339.0,1.50535332]
[1674239525646,0.00840366,21340.0,21339.0,1.93883344]
[1674239525897,0.00840366,21340.0,21339.0,1.50535332]
[1674239526169,0.00840366,21340.0,21339.0,1.91011286]
[1674239526427,0.00840366,21340.0,21339.0,1.50535332]
[1674239526938,0.00840366,21340.0,21339.0,2.69027807]
[1674239527277,0.00840366,21340.0,21339.0,3.23370307]
[1674239527476,0.00840366,21340.0,21339.0,4.17082298]
[1674239527733,0.00734323,21341.0,21340.0,0.08480199]
[1674239527990,0.00807294,21342.0,21341.0,0.08407386]
[1674239528244,0.00807294,21342.0,21341.0,3.30450852]
[1674239528544,0.00807294,21342.0,21341.0,3.60442431]
[1674239528805,0.00807294,21342.0,21341.0,2.66738861]
[1674239529062,0.00807294,21342.0,21341.0,3.71617138]
[1674239529322,0.00807294,21342.0,21341.0,2.66727124]
[1674239529840,0.00807294,21342.0,21341.0,2.75827124]
[1674239530083,0.00807294,21342.0,21341.0,4.29791988]
[1674239530343,0.00307294,21342.0,21341.0,4.07426465]
[1674239530606,0.00307294,21342.0,21341.0,2.77904231]
[1674239530866,0.00307294,21342.0,21341.0,2.75827124]
[1674239532167,0.00307294,21342.0,21341.0,2.83800008]
[1674239532433,0.00307294,21342.0,21341.0,2.50507702]
[1674239532675,0.00307294,21342.0,21341.0,2.50513702]
[1674239533224,0.00307294,21342.0,21341.0,2.03440818]
[1674239533475,0.00307294,21342.0,21341.0,2.42540818]
[1674239533988,0.00307294,21342.0,21341.0,2.87675539]
[1674239534242,0.00307294,21342.0,21341.0,2.57675539]
[1674239535054,0.00307294,21342.0,21341.0,2.42540818]
[1674239536401,0.00307294,21342.0,21341.0,2.12540818]
[1674239536648,0.00307294,21342.0,21341.0,2.50800352]
[1674239537151,0.00307294,21342.0,21341.0,2.42540818]
[1674239537395,0.00307294,21342.0,21341.0,2.78471847]
[1674239537675,0.00307294,21342.0,21341.0,2.42534818]
[1674239538702,0.00307294,21342.0,21341.0,2.43778011]
[1674239540504,0.00170199,21343.0,21342.0,0.15]
[1674239540777,0.00170199,21343.0,21342.0,1.490036]
[1674239541291,0.00170199,21343.0,21342.0,1.66723769]
[1674239541544,0.00170199,21343.0,21342.0,2.1162079]
[1674239542316,0.00170199,21343.0,21342.0,1.96723769]
[1674239542870,0.00270199,21343.0,21342.0,2.17980872]
[1674239544142,0.00270199,21343.0,21342.0,1.75123769]
[1674239544378,0.00270199,21343.0,21342.0,2.05123769]
[1674239545160,0.00270199,21343.0,21342.0,2.47583795]
[1674239545415,0.00270199,21343.0,21342.0,1.75123769]
[1674239545677,0.00270199,21343.0,21342.0,2.45889726]
[1674239545933,0.00270199,21343.0,21342.0,2.92751626]
[1674239546186,0.00270199,21343.0,21342.0,2.62751626]
[1674239546949,0.00270199,21343.0,21342.0,2.21985669]
[1674239547208,0.00270199,21343.0,21342.0,2.51985669]
[1674239547708,0.00102646,21343.0,21342.0,2.21985669]
[1674239547962,0.00102646,21343.0,21342.0,2.66278727]
[1674239548232,0.08152646,21343.0,21342.0,2.66278727]
[1674239548499,0.00102646,21343.0,21342.0,2.11078558]
[1674239550814,0.00102646,21343.0,21342.0,1.64216658]
[1674239551576,0.00102646,21343.0,21342.0,1.61404858]
[1674239552328,0.00102646,21343.0,21342.0,1.93074358]
[1674239552867,0.00102646,21343.0,21342.0,1.61404858]
[1674239553168,0.00102646,21343.0,21342.0,1.021118]
[1674239553383,0.33696596,21343.0,21342.0,1.021118]
[1674239553656,0.33696596,21343.0,21342.0,0.084]
[1674239554188,0.50993846,21343.0,21342.0,0.084]
[1674239554522,0.97847546,21343.0,21342.0,0.084]
[1674239554966,1.05227546,21343.0,21341.0,0.00471649]
[1674239555226,0.331451,21342.0,21341.0,0.00471649]
[1674239555488,0.480351,21342.0,21341.0,0.00471649]
[1674239557095,0.83119033,21342.0,21341.0,0.00471649]
[1674239557849,0.83219033,21342.0,21341.0,0.05771649]
[1674239564715,0.75769033,21342.0,21341.0,0.05771649]
[1674239564970,0.43473933,21342.0,21341.0,0.05771649]
[1674239565984,0.001,21342.0,21341.0,0.05765649]
[1674239566196,0.001,21342.0,21341.0,1.7120475]
[1674239566486,0.001,21342.0,21341.0,1.31465149]
[1674239566743,0.001,21342.0,21341.0,1.46465149]
[1674239566996,0.001,21342.0,21341.0,3.26134046]
[1674239567255,0.001,21342.0,21341.0,3.51838063]
[1674239567995,0.001,21342.0,21341.0,2.68130577]
[1674239568258,2.646e-05,21343.0,21341.0,1.41165149]
[1674239568507,2.646e-05,21343.0,21342.0,0.169513]
[1674239568774,2.646e-05,21343.0,21342.0,1.106631]
[1674239569533,2.646e-05,21343.0,21342.0,1.211631]
[1674239569875,2.646e-05,21343.0,21342.0,1.61305396]
[1674239570850,2.646e-05,21343.0,21342.0,1.061631]
[1674239571380,2.646e-05,21343.0,21342.0,1.042118]
[1674239571636,2.646e-05,21343.0,21342.0,1.493597]
[1674239571893,0.54819322,21344.0,21343.0,6.504e-05]
[1674239572144,0.54819322,21344.0,21343.0,0.46860204]
[1674239573904,0.54819322,21344.0,21343.0,0.56060204]
[1674239574718,0.47339322,21344.0,21343.0,0.56060204]
[1674239576066,0.47339322,21344.0,21343.0,0.56066204]
[1674239576344,0.00807294,21344.0,21343.0,0.71066204]
[1674239577657,0.00807294,21344.0,21343.0,1.17919904]
[1674239578173,0.00807294,21344.0,21343.0,1.96851582]
[1674239579424,0.00807294,21344.0,21343.0,1.96845582]
[1674239582713,0.00807294,21344.0,21343.0,1.96839078]
[1674239582972,0.00807294,21344.0,21343.0,1.508088]
[1674239583234,0.00807294,21344.0,21343.0,2.93017811]
[1674239583506,0.00807294,21344.0,21343.0,3.02538071]
[1674239583800,0.00307097,21344.0,21343.0,4.14352252]
[1674239584326,0.00307097,21344.0,21343.0,4.62072421]
[1674239584600,0.00307097,21344.0,21343.0,4.695299]
[1674239585126,0.00307097,21344.0,21343.0,4.39528925]
[1674239585593,0.00307097,21344.0,21343.0,4.58281094]
[1674239586108,0.00307097,21344.0,21343.0,4.58280636]
[1674239586359,0.00307097,21344.0,21343.0,4.5827794]
[1674239587902,0.00307097,21344.0,21343.0,3.94985634]
[1674239588150,0.00307097,21344.0,21343.0,3.87726364]
[1674239588681,0.00307097,21344.0,21343.0,4.2101867]
[1674239588933,0.00307097,21344.0,21343.0,4.58274198]
[1674239589232,9.7e-07,21344.0,21343.0,4.6945449]
[1674239589447,9.7e-07,21344.0,21343.0,4.88115309]
[1674239589694,9.7e-07,21344.0,21343.0,4.60158406]
[1674239589953,0.00840484,21345.0,21344.0,0.22935903]
[1674239590204,0.00840484,21345.0,21344.0,3.56153161]
[1674239590713,0.00840484,21345.0,21344.0,3.44974902]
[1674239590975,0.00840484,21345.0,21344.0,3.07732133]
[1674239591229,0.00840484,21345.0,21344.0,3.16932133]
[1674239591511,0.00840484,21345.0,21344.0,3.87459954]
[1674239592063,0.00840484,21345.0,21344.0,4.09829857]
[1674239592584,0.00840484,21345.0,21344.0,3.98625096]
[1674239593147,0.00840484,21345.0,21344.0,4.20636447]
[1674239593415,0.00340484,21345.0,21344.0,3.54483748]
[1674239593678,0.00340484,21345.0,21344.0,2.22855284]
[1674239593954,0.00340484,21345.0,21344.0,1.96686477]
[1674239594783,0.00340484,21345.0,21344.0,2.11686477]
[1674239596092,0.00340484,21345.0,21344.0,1.96686477]
[1674239597193,0.00340484,21345.0,21344.0,2.11686477]
[1674239597449,0.00340484,21345.0,21344.0,2.11692477]
[1674239597704,0.00340484,21345.0,21344.0,1.96692477]
[1674239597979,0.45116053,21345.0,21344.0,1.02914903]
[1674239598237,0.52596053,21345.0,21344.0,0.09211903]
[1674239598523,0.83694653,21345.0,21344.0,0.09211903]
[1674239599076,1.45269196,21345.0,21344.0,0.09211903]
[1674239599341,1.09393627,21345.0,21344.0,0.09211903]
[1674239599603,1.39012077,21345.0,21344.0,0.09211903]
[1674239600161,1.39012077,21345.0,21344.0,0.00011903]
[1674239600413,1.54912077,21345.0,21344.0,0.00011903]
[1674239600673,1.54012077,21345.0,21344.0,0.00011903]
[1674239600930,1.10556166,21345.0,21344.0,0.00011903]
[1674239601431,1.48036166,21345.0,21344.0,0.00011903]
[1674239602485,1.48036166,21345.0,21344.0,5.903e-05]
[1674239602739,1.18036166,21345.0,21344.0,5.903e-05]
[1674239603254,1.48036166,21345.0,21344.0,5.903e-05]
[1674239603504,1.18036166,21345.0,21344.0,5.903e-05]
[1674239603806,1.48036166,21345.0,21344.0,5.903e-05]
[1674239604585,1.18036166,21345.0,21344.0,5.903e-05]
[1674239609685,1.64885466,21345.0,21344.0,5.903e-05]
[1674239609960,1.94885466,21345.0,21344.0,5.903e-05]
[1674239610214,1.64885466,21345.0,21344.0,5.903e-05]
[1674239610466,1.99587082,21345.0,21344.0,5.903e-05]
[1674239611241,1.64885466,21345.0,21344.0,5.903e-05]
[1674239611490,2.01926436,21345.0,21344.0,5.903e-05]
[1674239613262,1.94885466,21345.0,21344.0,5.903e-05]
[1674239613758,1.85229947,21345.0,21344.0,5.903e-05]
[1674239614499,2.00229947,21345.0,21344.0,5.903e-05]
[1674239614747,1.56835466,21345.0,21344.0,5.903e-05]
[1674239615245,1.94257339,21345.0,21344.0,5.903e-05]
[1674239615497,1.47408039,21345.0,21344.0,5.903e-05]
[1674239616779,1.39928039,21345.0,21344.0,5.903e-05]
[1674239617013,1.32448039,21345.0,21344.0,5.903e-05]
[1674239617255,1.79297339,21345.0,21344.0,5.903e-05]
[1674239618533,1.41875466,21345.0,21344.0,5.903e-05]
[1674239618798,1.71875466,21345.0,21344.0,5.903e-05]
[1674239619051,1.86825466,21345.0,21344.0,5.903e-05]
[1674239619557,2.4636787,21345.0,21344.0,5.903e-05]
[1674239620071,2.57545061,21345.0,21344.0,5.903e-05]
[1674239620325,2.4546787,21345.0,21344.0,5.903e-05]
[1674239620584,2.14255466,21345.0,21344.0,5.903e-05]
[1674239621073,2.16955466,21345.0,21344.0,0.00593908]
[1674239621329,2.16955466,21345.0,21340.0,6e-05]
[1674239621330,0.15,21344.0,21340.0,6e-05]
[1674239621591,0.0748,21341.0,21340.0,6e-05]
[1674239621900,1.53568997,21341.0,21340.0,6e-05]
[1674239622114,1.649869,21341.0,21340.0,6e-05]
[1674239623177,1.649869,21341.0,21340.0,0.00606]
[1674239623178,1.376869,21341.0,21340.0,0.00606]
[1674239623392,1.349869,21341.0,21340.0,6e-05]
[1674239623644,1.349869,21341.0,21340.0,0.00606]
[1674239623645,1.376869,21341.0,21340.0,0.00606]
[1674239624157,1.349869,21341.0,21340.0,6e-05]
[1674239624545,1.799869,21341.0,21340.0,6e-05]
[1674239624734,1.826869,21341.0,21340.0,0.00606]
[1674239625511,1.376869,21341.0,21340.0,0.00606]
[1674239625772,1.72153615,21341.0,21340.0,0.00606]
[1674239626029,1.376869,21341.0,21340.0,0.00606]
[1674239626290,1.77802046,21341.0,21340.0,0.00606]
[1674239629347,1.77802046,21341.0,21340.0,0.006]
[1674239630962,1.29861064,21341.0,21340.0,0.006]
[1674239631410,0.75522964,21341.0,21340.0,0.006]
[1674239631668,0.42582264,21341.0,21340.0,0.006]
[1674239633195,0.027,21341.0,21340.0,1.36558947]
[1674239633459,0.027,21341.0,21340.0,1.69248447]
[1674239633716,0.02643607,21341.0,21340.0,1.69248447]
[1674239635335,0.45246605,21344.0,21340.0,1.68648447]
[1674239635594,0.002,21341.0,21340.0,1.42658947]
[1674239636105,0.002,21341.0,21340.0,1.74661447]
[1674239636364,0.34416114,21343.0,21340.0,1.67961447]
[1674239636601,0.34416114,21343.0,21340.0,1.42658947]
[1674239637115,0.34416114,21343.0,21340.0,1.35958947]
[1674239637446,0.34416114,21343.0,21341.0,0.40582081]
[1674239637901,0.34416114,21343.0,21341.0,0.87439681]
[1674239638912,0.34616114,21343.0,21341.0,0.87439681]
[1674239639427,0.34816114,21343.0,21341.0,0.94139681]
[1674239640106,0.0125,21343.0,21342.0,0.36906517]
[1674239640376,0.004,21343.0,21342.0,0.83762417]
[1674239640633,0.004,21343.0,21342.0,1.30618317]
[1674239640892,0.004,21343.0,21342.0,0.83762417]
[1674239641397,0.0085,21344.0,21342.0,0.83762417]
[1674239641649,0.002,21343.0,21342.0,0.90462417]
[1674239641906,0.002,21343.0,21342.0,0.43606517]
[1674239642160,0.002,21343.0,21342.0,1.37318317]
[1674239643417,0.002,21343.0,21342.0,0.90462417]
[1674239643672,0.002,21343.0,21342.0,1.37318317]
[1674239644469,0.002,21343.0,21342.0,0.90462417]
[1674239644731,0.002,21343.0,21342.0,1.37318317]
[1674239645257,0.002,21343.0,21342.0,1.70516917]
[1674239645505,0.002,21343.0,21342.0,1.85522917]
[1674239645770,0.002,21343.0,21342.0,1.85516917]
[1674239646536,0.002,21343.0,21342.0,1.23661017]
[1674239646786,0.002,21343.0,21342.0,0.90468417]
[1674239648832,0.002,21343.0,21342.0,1.37324317]
[1674239649602,0.002,21343.0,21342.0,1.70578917]
[1674239649866,0.00175,21343.0,21342.0,1.23723017]
[1674239650659,0.00175,21343.0,21342.0,1.70578917]
[1674239650917,0.00175,21343.0,21342.0,1.37324317]
[1674239651453,0.00175,21343.0,21342.0,1.71227817]
[1674239651716,0.00175,21343.0,21342.0,1.86221817]
[1674239653050,0.00175,21343.0,21342.0,1.71221817]
[1674239653309,0.00175,21343.0,21342.0,1.37318317]
[1674239653843,0.00175,21343.0,21342.0,0.90462417]
[1674239654141,0.00175,21343.0,21342.0,1.21331017]
[1674239654586,0.00175,21343.0,21342.0,1.68186917]
[1674239655113,0.00175,21343.0,21342.0,1.83186917]
[1674239655617,0.00175,21343.0,21342.0,1.462804]
[1674239656138,0.00175,21343.0,21342.0,1.88497757]
[1674239656402,0.00175,21343.0,21342.0,2.93372442]
[1674239656709,0.00175,21343.0,21342.0,1.88497757]
[1674239659528,0.47127278,21343.0,21342.0,1.004118]
[1674239660024,0.47127278,21343.0,21342.0,0.067]
[1674239660544,0.47977278,21343.0,21342.0,0.067]
[1674239660785,0.39927278,21343.0,21342.0,0.067]
[1674239661034,0.01025,21343.0,21342.0,0.067]
[1674239662588,0.01025,21343.0,21342.0,1.4032635]
[1674239663385,0.01025,21343.0,21342.0,0.4661455]
[1674239664154,0.01025,21343.0,21342.0,0.067]
[1674239664405,0.459948,21343.0,21342.0,0.067]
[1674239671040,0.459948,21343.0,21342.0,0.062]
[1674239673845,0.01025,21343.0,21342.0,0.212]
[1674239674623,0.01025,21343.0,21342.0,0.55433508]
[1674239674898,0.01025,21343.0,21342.0,1.80122408]
[1674239676463,0.00175,21343.0,21342.0,1.458889]
[1674239676718,0.00175,21343.0,21342.0,3.40310159]
[1674239676978,0.00175,21343.0,21342.0,3.1795777]
[1674239677532,0.00175,21343.0,21342.0,3.40310159]
[1674239677754,0.00063791,21343.0,21342.0,3.70310159]
[1674239678009,0.00063791,21343.0,21342.0,3.48552899]
[1674239678273,0.00063791,21343.0,21342.0,3.17950809]
[1674239678545,0.00063791,21343.0,21342.0,3.59068114]
[1674239678901,0.00063791,21343.0,21342.0,3.29134492]
[1674239679081,0.00063791,21343.0,21342.0,2.95842186]
[1674239679361,0.00063791,21343.0,21342.0,3.40303198]
[1674239679876,0.00063791,21343.0,21342.0,1.86651206]
[1674239680150,0.00063791,21343.0,21342.0,1.533589]
[1674239680885,0.00063791,21343.0,21342.0,2.16651206]
[1674239681674,0.00063791,21343.0,21342.0,1.86651206]
[1674239681922,0.00063791,21343.0,21342.0,1.533589]
[1674239682420,0.00063791,21343.0,21342.0,1.93687966]
[1674239682921,0.00063791,21343.0,21342.0,1.533589]
[1674239683189,0.00063791,21343.0,21342.0,1.93210859]
[1674239683481,0.00063791,21343.0,21342.0,1.533589]
[1674239683735,0.00063791,21343.0,21342.0,1.94294093]
[1674239684512,0.00063791,21343.0,21342.0,1.533589]
[1674239684782,0.00063791,21343.0,21342.0,1.758889]
[1674239685036,0.00063791,21343.0,21342.0,3.27677427]
[1674239685301,0.00063791,21343.0,21342.0,3.22110057]
[1674239685548,0.00063791,21343.0,21342.0,2.05852187]
[1674239685803,0.00063791,21343.0,21342.0,1.458889]
[1674239686061,0.00063791,21343.0,21342.0,3.14076604]
[1674239686322,0.00063791,21343.0,21342.0,3.21496604]
[1674239686619,0.00063791,21343.0,21342.0,2.95789828]
[1674239686859,0.00063791,21343.0,21342.0,3.32756239]
[1674239687082,0.00063791,21343.0,21342.0,1.88447798]
[1674239688564,0.00063791,21343.0,21342.0,1.458889]
[1674239689094,0.00063791,21343.0,21342.0,1.92883601]
[1674239690416,0.00741233,21346.0,21343.0,0.15]
[1674239690672,0.00741233,21346.0,21344.0,0.966584]
[1674239690924,0.00741233,21346.0,21345.0,0.309722]
[1674239691228,0.00741233,21346.0,21345.0,0.618493]
[1674239692012,0.02041233,21346.0,21345.0,0.618493]
[1674239692262,0.00741233,21346.0,21345.0,0.618493]
[1674239692509,0.02041233,21346.0,21345.0,0.618493]
[1674239693365,0.02041233,21346.0,21345.0,0.468493]
[1674239697043,0.02041233,21346.0,21345.0,0.468553]
[1674239697258,0.39056004,21346.0,21345.0,0.468553]
[1674239698500,0.39056004,21346.0,21345.0,6e-05]
[1674239700531,0.02041233,21346.0,21345.0,1.27709481]
[1674239700841,0.02041233,21346.0,21345.0,0.80860181]
[1674239701067,0.02041233,21346.0,21345.0,1.60398181]
[1674239701844,0.02041233,21346.0,21345.0,1.67812181]
[1674239702176,0.02041233,21346.0,21345.0,1.82812181]
[1674239702860,0.02041233,21346.0,21345.0,2.53685182]
[1674239704967,0.02041233,21346.0,21345.0,1.8310828]
[1674239705221,0.02041233,21346.0,21345.0,1.6068828]
[1674239705481,0.02041233,21346.0,21345.0,1.2799958]
[1674239706246,0.01541233,21346.0,21345.0,1.2799958]
[1674239710882,0.01541233,21346.0,21345.0,1.5993758]
[1674239711098,0.01541233,21346.0,21345.0,1.2799958]
[1674239712129,0.01541233,21346.0,21345.0,0.8115028]
[1674239712890,0.01541233,21346.0,21345.0,1.2799958]
[1674239714177,0.01541233,21346.0,21345.0,1.2797528]
[1674239714439,0.01541233,21346.0,21345.0,1.1297528]
[1674239714718,0.01541233,21346.0,21345.0,0.8115028]
[1674239715052,0.01541233,21346.0,21345.0,1.2799958]
[1674239715478,0.01541233,21346.0,21345.0,1.6101578]
[1674239715990,0.01541233,21346.0,21345.0,2.46593214]
[1674239716286,0.01541233,21346.0,21345.0,2.63372904]
[1674239716511,0.01541233,21346.0,21345.0,3.26205732]
[1674239716765,0.01541233,21346.0,21345.0,2.84211176]
[1674239717039,0.01541233,21346.0,21345.0,3.29270383]
[1674239717303,0.01541233,21346.0,21345.0,2.63374838]
[1674239717601,0.01541233,21346.0,21345.0,2.84214028]
[1674239717905,0.01541233,21346.0,21345.0,3.0861036]
[1674239717906,0.00561994,21346.0,21345.0,3.0861036]
[1674239718162,0.00561994,21346.0,21345.0,3.36567263]
[1674239718414,0.00561994,21346.0,21345.0,2.76597498]
[1674239718671,0.00561994,21346.0,21345.0,3.29081143]
[1674239718937,0.00561994,21346.0,21345.0,2.38008395]
[1674239719203,0.00561994,21346.0,21345.0,3.14887394]
[1674239719462,0.00561994,21346.0,21345.0,2.68008395]
[1674239719975,0.00561994,21346.0,21345.0,3.53262985]
[1674239720413,0.00561994,21346.0,21345.0,3.86624049]
[1674239720419,0.00561994,21346.0,21345.0,4.30651982]
[1674239720665,0.00561994,21346.0,21345.0,3.53243028]
[1674239720919,0.00561994,21346.0,21345.0,3.75630459]
[1674239721197,0.00561994,21346.0,21345.0,3.92603573]
[1674239721462,0.00561994,21346.0,21345.0,3.53275015]
[1674239721715,0.00784393,21350.0,21346.0,0.15]
[1674239721976,0.00784393,21350.0,21347.0,1.405335]
[1674239722237,0.00784393,21350.0,21348.0,0.489218]
[1674239722495,0.00784393,21350.0,21349.0,1.263287]
[1674239722775,0.00784393,21350.0,21349.0,0.468406]
[1674239722776,0.37694025,21350.0,21349.0,0.468406]
[1674239723350,0.37694025,21350.0,21349.0,0.01188]